fUSD/lending_fUSD_20260217
["ID","MTS","AMOUNT","RATE_DAILY","PERIOD"]
[405773377,1771293050313,-2488.64,0.000219,2]
[405773378,1771293050323,-857.13,0.000219,2]
[405773379,1771293050332,-3911.13,0.00021918,30]
[405773380,1771293050341,-500.0,0.00021918,2]
[405773381,1771293050351,-500.0,0.00021918,2]
[405773382,1771293050359,-306.51422453,0.00021935,2]
[405773383,1771293050368,-573.45760824,0.00021973,2]
[405773384,1771293050377,-504.09468333,0.00021973,2]
[405773385,1771293050386,-503.2366262,0.00021973,2]
[405773386,1771293050397,-500.0,0.00021973,2]
[405773387,1771293050405,-508.22453373,0.00021973,2]
[405773388,1771293050416,-509.85751715,0.00021973,2]
[405773389,1771293050426,-501.35605949,0.00021973,2]
[405773390,1771293050435,-500.99019732,0.00021973,2]
[405773391,1771293050443,-588.14229004,0.00021973,2]
[405773392,1771293050452,-500.0,0.00021973,2]
[405773393,1771293050461,-502.88998638,0.00021973,2]
[405773394,1771293050470,-436.04334629,0.00021973,2]
[405773395,1771293050479,-502.53760547,0.00021973,2]
[405773396,1771293050488,-500.0,0.00021973,2]
[405773397,1771293050497,-500.0,0.00021973,2]
[405773398,1771293050506,-310.16973746,0.00021973,2]
[405773399,1771293050517,-502.37992604,0.00021973,2]
[405773400,1771293050525,-504.66274009,0.00021973,2]
[405773401,1771293050534,-501.59728131,0.00021973,2]
[405773402,1771293050543,-163.14629325,0.00021973,2]
[405773403,1771293050553,-500.0,0.00021973,2]
[405773404,1771293050562,-501.26419244,0.00021973,2]
[405773405,1771293050571,-502.80271569,0.00021973,2]
[405773406,1771293050580,-500.0,0.00021973,2]
[405773407,1771293050589,-168.45138887,0.00021973,2]
[405773408,1771293050598,-500.0,0.00021973,2]
[405773409,1771293050608,-500.0,0.00021973,2]
[405773410,1771293050618,-501.78719611,0.00021973,2]
[405773411,1771293050627,-500.0,0.00021973,2]
[405773412,1771293050636,-500.0,0.00021973,2]
[405773413,1771293050645,-300.0,0.00021999,2]
[405773414,1771293050654,-278.53,0.00022,7]
[405773415,1771293050664,-211977.29638145,0.00022,4]
[405773416,1771293050672,-197.61711465,0.00022,120]
[405773417,1771293050681,-3818.79557493,0.00022,2]
[405773418,1771293050690,-402994.46,0.00022,2]
[405773419,1771293050699,-315.07,0.00022,2]
[405773420,1771293050708,-571.52386176,0.00022028,2]
[405773421,1771293050717,-500.0,0.00022028,2]
[405773422,1771293050726,-500.0,0.00022082,2]
[405773423,1771293050735,-500.0,0.00022137,2]
[405773424,1771293050744,-160.57318335,0.00022159,2]
[405773425,1771293050754,-500.0,0.00022192,2]
[405773426,1771293050763,-360.38217355,0.00022222,30]
[405773427,1771293050772,-500.0,0.00022247,2]
[405773428,1771293050784,-502.0,0.00022287,6]
[405773429,1771293050794,-500.0,0.00022302,2]
[405773430,1771293050803,-500.0,0.00022356,2]
[405773431,1771293050812,-500.0,0.00022411,2]
[405773432,1771293050823,-6548.69,0.00022466,2]
[405773433,1771293050832,-500.0,0.00022466,2]
[405773434,1771293050841,-35612.83402249,0.000225,2]
[405773435,1771293050850,-5530.0,0.000225,3]
[405773436,1771293050861,-213.36943428,0.00022521,2]
[405773437,1771293050870,-1000.0,0.00022521,2]
[405773438,1771293050880,-1000.0,0.00022521,2]
[405773439,1771293050889,-1000.0,0.00022521,2]
[405773440,1771293050899,-1000.0,0.00022521,2]
[405773441,1771293050909,-1000.0,0.00022521,2]
[405773442,1771293050918,-1000.0,0.00022521,2]
[405773443,1771293050927,-1000.0,0.00022521,2]
[405773444,1771293050937,-500.0,0.00022521,2]
[405773445,1771293050946,-500.0,0.00022576,2]
[405773446,1771293050955,-3617.06768567,0.000226,2]
[405773447,1771293050964,-500.0,0.0002263,2]
[405773448,1771293050974,-500.0,0.00022685,2]
[405773449,1771293050983,-11967.5116768,0.00022715,2]
[405773450,1771293050992,-500.0,0.0002274,2]
[405773451,1771293051002,-500.0,0.00022795,2]
[405773452,1771293051011,-500.0,0.0002285,2]
[405773453,1771293051022,-308.42870503,0.00022899,2]
[405773454,1771293051031,-500.0,0.00022904,2]
[405773455,1771293051040,-500.0,0.00022959,2]
[405773456,1771293051050,-304204.64364398,0.00023,2]
[405773457,1771293051059,-450.0,0.00023,2]
[405773458,1771293051067,-160.0,0.00023,2]
[405773459,1771293051077,-502.0,0.00023,7]
[405773460,1771293051087,-402994.46,0.00023,2]
[405773461,1771293051096,-500.0,0.00023014,2]
[405773462,1771293051105,-511.01261154,0.00023068,2]
[405773463,1771293051115,-1510.51189712,0.00023068,2]
[405773464,1771293051124,-1500.0,0.00023068,2]
[405773465,1771293051132,-746.96831808,0.00023068,2]
[405773466,1771293051141,-1500.0,0.00023068,2]
[405773467,1771293051150,-1500.0,0.00023068,2]
[405773468,1771293051160,-500.0,0.00023069,2]
[405773469,1771293051168,-500.0,0.00023123,2]
[405773470,1771293051177,-500.0,0.00023178,2]
[405773471,1771293051186,-2316.8,0.000232,14]
[405773472,1771293051195,-500.0,0.00023233,2]
[405773473,1771293051204,-500.0,0.00023288,2]
[405773474,1771293051213,-1088.12437796,0.00023295,2]
[405773475,1771293051222,-5530.0,0.000233,5]
[405773476,1771293051231,-500.0,0.00023343,2]
[405773477,1771293051240,-500.0,0.00023397,2]
[405773478,1771293051248,-500.0,0.00023452,2]
[405773479,1771293051257,-473.31058807,0.00023477,2]
[405773480,1771293051266,-500.0,0.00023507,2]
[405773481,1771293051275,-500.0,0.00023562,2]
[405773482,1771293051284,-409.50775716,0.00023616,2]
[405773483,1771293051293,-2000.0,0.00023616,2]
[405773484,1771293051302,-658.35387756,0.00023616,2]
[405773485,1771293051313,-500.0,0.00023617,2]
[405773486,1771293051322,-500.0,0.00023671,2]
[405773487,1771293051331,-502.0,0.00023713,7]
[405773488,1771293051340,-616.53250312,0.00023726,2]
[405773489,1771293051349,-153.344252,0.000238,2]
[405773490,1771293051358,-151.0,0.000238,2]
[405773491,1771293051367,-157.404271,0.000238,2]
[405773492,1771293051376,-157.404271,0.000238,2]
[405773493,1771293051385,-157.404271,0.000238,2]
[405773494,1771293051394,-157.404271,0.000238,2]
[405773495,1771293051403,-3600.0,0.00024,2]
[405773496,1771293051413,-1239.5896424,0.00024,2]
[405773497,1771293051422,-502.39964348,0.00024164,2]
[405773498,1771293051431,-423.50986451,0.0002421,2]
[405773499,1771293051439,-3709.90904138,0.0002421,2]
[405773500,1771293051448,-160.57318335,0.00024375,2]
[405773501,1771293051457,-502.0,0.00024425,8]
[405773502,1771293051466,-1000.0,0.00024441,2]
[405773503,1771293051476,-360.38217355,0.00024444,30]
[405773504,1771293051485,-151.0,0.00024497,7]
[405773505,1771293051494,-402994.46,0.000245,2]
[405773506,1771293051503,-151.0,0.000245,2]
[405773507,1771293051513,-151.0,0.000245,2]
[405773508,1771293051521,-151.0,0.000245,2]
[405773509,1771293051530,-151.0,0.000245,2]
[405773510,1771293051540,-151.0,0.000245,2]
[405773511,1771293051548,-619.543,0.00024604,2]
[405773512,1771293051558,-1340.68,0.00024604,2]
[405773513,1771293051567,-3506.399,0.00024604,2]
[405773514,1771293051576,-1164.0,0.00024604,2]
[405773515,1771293051586,-1275.0,0.00024604,2]
[405773516,1771293051595,-150.248,0.00024604,2]
[405773517,1771293051604,-1227.627,0.00024604,2]
[405773518,1771293051613,-5973.0,0.00024604,2]
[405773519,1771293051622,-414.156,0.00024604,2]
[405773520,1771293051631,-2477.411,0.00024604,2]
[405773521,1771293051639,-834.15,0.00024658,2]
[405773522,1771293051648,-151.0,0.00024658,2]
[405773523,1771293051657,-150.0,0.00024658,2]
[405773524,1771293051666,-2517.14508964,0.0002469,2]
[405773525,1771293051676,-1115.47002653,0.00025,2]
[405773526,1771293051685,-207.81200039,0.00025,2]
[405773527,1771293051694,-127869.70100527,0.00025,60]
[405773528,1771293051702,-1787.34955308,0.00025,2]
[405773529,1771293051711,-165863.52344795,0.00025,30]
[405773530,1771293052192,-407.45608121,0.0001444,2]
[405773531,1771293052209,-435.8099995,0.0001444,2]
[405773532,1771293052244,-251.3208576,0.0001444,2]
[405773536,1771293068106,5000.01,7.945e-05,2]
[405773537,1771293073041,-5000.01,7.945e-05,2]
[405773538,1771293076442,-1162.942062,7.945e-05,2]
[405773543,1771293244726,580.4,8.097e-05,2]
[405773544,1771293376921,191.0,0.000203,120]
[405773545,1771293437756,-242.33,8.5e-05,2]
[405773548,1771293661197,300.0,8.53e-05,2]
[405773550,1771293721256,300.0,8.53e-05,2]
[405773551,1771293740379,-194.0,8.531e-05,2]
[405773552,1771293781353,300.0,8.53e-05,2]
[405773553,1771293781506,300.0,8.53e-05,2]
[405773554,1771293797891,760.3044225,8.53e-05,2]
[405773555,1771293857076,-306.0,8.531e-05,2]
[405773556,1771293857099,-500.0,8.531e-05,2]
[405773557,1771293857122,-500.0,8.531e-05,2]
[405773558,1771293857149,-500.0,8.531e-05,2]
[405773559,1771293857170,-500.0,8.531e-05,2]
[405773560,1771293857192,-500.0,8.531e-05,2]
[405773561,1771293857214,-500.0,8.531e-05,2]
[405773562,1771293857586,-500.0,8.531e-05,2]
[405773563,1771293857608,-201.11322161,8.531e-05,2]
[405773564,1771293857629,-250.0,8.531e-05,2]
[405773565,1771293857651,-221.0,8.531e-05,2]
[405773566,1771293857674,-250.0,9.042e-05,2]
[405773567,1771293857695,-250.0,9.384e-05,2]
[405773568,1771293857715,-760.3044225,0.00010911,2]
[405773569,1771293871596,20150.17,0.000172,60]
[405773570,1771293875375,3261.58235589,0.000114,2]
[405773581,1771294099958,5405.46,9.547e-05,2]
[405773582,1771294144703,-5405.46,9.673e-05,2]
[405773583,1771294144730,-300.0,9.798e-05,2]
[405773584,1771294144756,-5405.46,9.799e-05,2]
[405773585,1771294144783,-5405.46,9.924e-05,2]
[405773586,1771294144809,-5405.46,0.0001005,2]
[405773587,1771294144834,-3078.16,0.00010175,2]
[405773588,1771294145727,-2327.3,0.00010175,2]
[405773589,1771294145754,-5405.46,0.00010301,2]
[405773590,1771294145781,-5405.46,0.00010427,2]
[405773591,1771294145806,-5405.46,0.00010552,2]
[405773592,1771294145831,-5405.46,0.00010678,2]
[405773593,1771294145856,-420.0,0.00010777,2]
[405773594,1771294145883,-630.86,0.00010803,2]
[405773595,1771294146252,-4774.6,0.00010803,2]
[405773596,1771294146283,-150.0,0.00010928,2]
[405773597,1771294146321,-5405.46,0.00010929,2]
[405773598,1771294146347,-500.0,0.00010973,2]
[405773599,1771294146375,-5405.46,0.00011055,2]
[405773600,1771294146405,-5405.46,0.0001118,2]
[405773601,1771294146432,-3359.02,0.00011306,2]
[405773602,1771294147024,-2046.44,0.00011306,2]
[405773603,1771294147050,-253.4348075,0.00011368,2]
[405773604,1771294147076,-606.51764411,0.000114,2]
[405773605,1771294147101,-253.4348075,0.00011402,2]
[405773606,1771294147126,-5405.46,0.00011432,2]
[405773607,1771294147152,-250.0,0.00011434,2]
[405773608,1771294147178,-300.0,0.00011434,2]
[405773609,1771294147203,-253.4348075,0.00011435,2]
[405773610,1771294147227,-247.98585,0.00011447,2]
[405773611,1771294147254,-195.0,0.00011468,2]
[405773612,1771294147280,-250.0,0.00011494,2]
[405773613,1771294147313,-300.0,0.00011494,2]
[405773614,1771294147341,-300.0,0.00011494,2]
[405773615,1771294147367,-389.37190641,0.00011494,2]
[405773616,1771294147394,-502.71949542,0.00011521,2]
[405773617,1771294147419,-1200.0,0.00011534,2]
[405773618,1771294147444,-1000.0,0.00011534,2]
[405773619,1771294147483,-150.99,0.00011535,2]
[405773620,1771294147513,-4513.72,0.00011535,2]
[405773621,1771294147541,-6581.49068156,0.00011535,2]
[405773622,1771294147716,-3418.49931844,0.00011535,2]
[405773623,1771294147743,-999.99,0.00011535,2]
[405773624,1771294147769,-9999.99,0.00011535,2]
[405773625,1771294147795,-10581.52068156,0.00011535,2]
[405773626,1771294148421,-25000.0,0.00011535,2]
[405773627,1771294149296,-25000.0,0.00011535,2]
[405773628,1771294149625,-25000.0,0.00011535,2]
[405773629,1771294150446,-10475.92931844,0.00011535,2]
[405773630,1771294150474,-299.99,0.00011535,2]
[405773631,1771294150506,-300.0,0.00011546,2]
[405773632,1771294150539,-5405.46,0.00011557,2]
[405773633,1771294150569,-300.0,0.00011676,2]
[405773634,1771294150599,-300.0,0.00011676,2]
[405773635,1771294150640,-5405.46,0.00011683,2]
[405773636,1771294150679,-195.0,0.00011797,2]
[405773637,1771294150707,-195.0,0.00011797,2]
[405773638,1771294150739,-195.0,0.00011797,2]
[405773639,1771294150776,-1928.16068156,0.00011808,2]
[405773640,1771294151136,-3477.29931844,0.00011808,2]
[405773641,1771294151166,-587.0,0.00011855,2]
[405773642,1771294151194,-5405.46,0.00011934,2]
[405773643,1771294151221,-15530.24068156,0.00011989,2]
[405773645,1771294202656,500.0,8.43e-05,2]
[405773661,1771294231304,-1151.0,0.00011533,2]
[405773662,1771294231314,-244.0,0.00011533,2]
[405773663,1771294231324,-300.0,0.00011534,2]
[405773664,1771294231337,-195.0,0.00011534,2]
[405773665,1771294231346,-305.28712047,0.00011534,2]
[405773666,1771294231357,-917.06446221,0.00011534,2]
[405773667,1771294231367,-917.06446221,0.00011534,2]
[405773668,1771294231377,-917.06446221,0.00011534,2]
[405773669,1771294231387,-917.06446221,0.00011534,2]
[405773670,1771294231398,-917.06446221,0.00011534,2]
[405773671,1771294231407,-917.06446221,0.00011534,2]
[405773672,1771294231418,-917.06446221,0.00011534,2]
[405773673,1771294231428,-917.06446221,0.00011534,2]
[405773674,1771294231438,-917.06446221,0.00011534,2]
[405773675,1771294231449,-917.06446221,0.00011534,2]
[405773676,1771294231459,-917.06446221,0.00011534,2]
[405773677,1771294231469,-917.06446221,0.00011534,2]
[405773678,1771294231480,-917.06446221,0.00011534,2]
[405773679,1771294231490,-917.06446221,0.00011534,2]
[405773680,1771294231501,-917.06446221,0.00011534,2]
[405773681,1771294231511,-917.06446221,0.00011534,2]
[405773682,1771294231521,-917.06446221,0.00011534,2]
[405773683,1771294231532,-917.06446221,0.00011534,2]
[405773684,1771294231542,-917.06446221,0.00011534,2]
[405773685,1771294231553,-917.06446221,0.00011534,2]
[405773686,1771294231563,-917.06446221,0.00011534,2]
[405773687,1771294231573,-917.06446221,0.00011534,2]
[405773688,1771294231582,-917.06446221,0.00011534,2]
[405773689,1771294231592,-917.06446221,0.00011534,2]
[405773690,1771294231603,-917.06446221,0.00011534,2]
[405773691,1771294231615,-917.06446221,0.00011534,2]
[405773692,1771294231626,-917.06446221,0.00011534,2]
[405773693,1771294231636,-917.06446221,0.00011534,2]
[405773694,1771294231646,-202.14273398,0.00011534,2]
[405773695,1771294231659,-714.92172823,0.00011534,2]
[405773696,1771294231670,-917.06446221,0.00011534,2]
[405773697,1771294231680,-294.58278202,0.00011534,2]
[405773698,1771294231711,-622.48168019,0.00011534,2]
[405773699,1771294231720,-917.06446221,0.00011534,2]
[405773700,1771294231730,-917.06446221,0.00011534,2]
[405773701,1771294231739,-319.29204216,0.00011534,2]
[405773702,1771294231751,-597.77242005,0.00011534,2]
[405773703,1771294231762,-917.06446221,0.00011534,2]
[405773704,1771294231771,-917.06446221,0.00011534,2]
[405773705,1771294231781,-917.06446221,0.00011534,2]
[405773706,1771294231791,-917.06446221,0.00011534,2]
[405773707,1771294231801,-917.06446221,0.00011534,2]
[405773708,1771294231811,-917.06446221,0.00011534,2]
[405773709,1771294231821,-917.06446221,0.00011534,2]
[405773710,1771294231831,-917.06446221,0.00011534,2]
[405773711,1771294231841,-917.06446221,0.00011534,2]
[405773712,1771294231851,-917.06446221,0.00011534,2]
[405773713,1771294231861,-917.06446221,0.00011534,2]
[405773714,1771294231871,-917.06446221,0.00011534,2]
[405773715,1771294231881,-917.06446221,0.00011534,2]
[405773716,1771294231892,-917.06446221,0.00011534,2]
[405773717,1771294231901,-917.06446221,0.00011534,2]
[405773718,1771294231911,-917.06446221,0.00011534,2]
[405773719,1771294231922,-917.06446221,0.00011534,2]
[405773720,1771294231931,-436.18419945,0.00011534,2]
[405773727,1771294237394,-1570.56236961,0.00011535,2]
[405773728,1771294237405,-250.0,0.00011546,2]
[405773729,1771294237416,-300.0,0.00011627,2]
[405773730,1771294237426,-195.0,0.00011627,2]
[405773731,1771294237436,-195.0,0.00011627,2]
[405773732,1771294237447,-7268.09931844,0.00011989,2]
[405773733,1771294237458,-1500.0,0.0001205,2]
[405773734,1771294237469,-166.0,0.00012342,2]
[405773735,1771294237479,-160.5,0.00012342,2]
[405773736,1771294237490,-618.0,0.00012366,2]
[405773737,1771294237501,-300.0,0.0001254,2]
[405773738,1771294237512,-1600.0,0.00012579,2]
[405773739,1771294237522,-300.0,0.00012686,2]
[405773740,1771294237532,-195.0,0.00012686,2]
[405773741,1771294237544,-300.0,0.00012689,2]
[405773742,1771294237554,-195.0,0.00012689,2]
[405773743,1771294237564,-250.0,0.00012689,2]
[405773744,1771294237574,-150.0,0.00012814,2]
[405773745,1771294237585,-9393.31,0.00012918,2]
[405773746,1771294237595,-1047.0,0.00013132,2]
[405773747,1771294237606,-1071.60877764,0.00013158,2]
[405773748,1771294237616,-872.7105469,0.000132,2]
[405773749,1771294237627,-1185.88511722,0.000132,2]
[405773750,1771294237638,-993.16230472,0.000132,2]
[405773751,1771294237648,-1209.97546879,0.000132,2]
[405773752,1771294237659,-1523.15003911,0.000132,2]
[405773753,1771294237669,-2620.90018439,0.000132,2]
[405773754,1771294237680,-406.69052905,0.00013298,2]
[405773755,1771294237690,-289.6844441,0.00013298,2]
[405773756,1771294237701,-5732.48275392,0.00013298,2]
[405773757,1771294237711,-10775.37446231,0.00013298,2]
[405773758,1771294237721,-534.18504783,0.00013298,2]
[405773759,1771294237731,-151.0,0.00013395,2]
[405773760,1771294237741,-450.58401705,0.00013397,2]
[405773761,1771294237751,-475.53814072,0.00013397,2]
[405773762,1771294237761,-500.0,0.00013397,2]
[405773763,1771294237771,-500.0,0.00013397,2]
[405773765,1771294237781,-500.0,0.00013397,2]
[405773766,1771294237791,-500.0,0.00013397,2]
[405773768,1771294237800,-409.89775076,0.00013397,2]
[405773771,1771294237809,-500.0,0.00013397,2]
[405773774,1771294237819,-53361.95612856,0.00013398,2]
[405773776,1771294238307,-26729.31217144,0.00013398,2]
[405773777,1771294238317,-3500000.0,0.00013398,2]
[405773778,1771294238327,-2032.9993,0.00013398,2]
[405773779,1771294238338,-2500.0,0.00013398,2]
[405773780,1771294238348,-500.0,0.0001349,2]
[405773781,1771294238358,-500.0,0.0001349,2]
[405773782,1771294238368,-500.0,0.0001349,2]
[405773783,1771294238377,-500.0,0.0001349,2]
[405773784,1771294238387,-500.0,0.0001349,2]
[405773785,1771294238397,-500.0,0.0001349,2]
[405773786,1771294238406,-500.0,0.0001349,2]
[405773787,1771294238416,-500.0,0.0001349,2]
[405773788,1771294238426,-500.0,0.0001349,2]
[405773789,1771294238436,-500.0,0.0001349,2]
[405773790,1771294238445,-500.0,0.0001349,2]
[405773791,1771294238455,-500.0,0.0001349,2]
[405773792,1771294238464,-500.0,0.0001349,2]
[405773793,1771294238474,-500.0,0.0001349,2]
[405773794,1771294238484,-500.0,0.0001349,2]
[405773795,1771294238493,-500.0,0.0001349,2]
[405773796,1771294238503,-500.0,0.0001349,2]
[405773797,1771294238513,-500.0,0.0001349,2]
[405773798,1771294238523,-500.0,0.0001349,2]
[405773799,1771294238534,-151.0,0.0001349,2]
[405773800,1771294238543,-500.0,0.0001349,2]
[405773801,1771294238553,-151.0,0.0001349,2]
[405773802,1771294238563,-500.0,0.0001349,2]
[405773803,1771294238572,-151.0,0.0001349,2]
[405773804,1771294238582,-500.0,0.0001349,2]
[405773805,1771294238591,-151.0,0.0001349,2]
[405773806,1771294238601,-151.0,0.0001349,2]
[405773807,1771294238611,-151.0,0.0001349,2]
[405773808,1771294238622,-151.0,0.0001349,2]
[405773809,1771294238631,-151.0,0.0001349,2]
[405773810,1771294238641,-151.0,0.0001349,2]
[405773811,1771294238655,-151.0,0.0001349,2]
[405773812,1771294238672,-151.0,0.0001349,2]
[405773813,1771294238688,-151.0,0.0001349,2]
[405773814,1771294238703,-151.0,0.0001349,2]
[405773815,1771294238715,-151.0,0.0001349,2]
[405773816,1771294238729,-151.0,0.0001349,2]
[405773817,1771294238744,-151.0,0.0001349,2]
[405773818,1771294238759,-151.0,0.0001349,2]
[405773819,1771294238775,-151.0,0.0001349,2]
[405773820,1771294238790,-151.0,0.0001349,2]
[405773821,1771294238803,-151.0,0.0001349,2]
[405773822,1771294238816,-151.0,0.0001349,2]
[405773823,1771294238827,-151.0,0.0001349,2]
[405773824,1771294238841,-151.0,0.0001349,2]
[405773825,1771294238859,-151.0,0.0001349,2]
[405773826,1771294238874,-151.0,0.0001349,2]
[405773827,1771294238888,-151.0,0.0001349,2]
[405773828,1771294238902,-151.0,0.0001349,2]
[405773829,1771294238916,-151.0,0.0001349,2]
[405773830,1771294238931,-151.0,0.0001349,2]
[405773831,1771294238944,-151.0,0.0001349,2]
[405773832,1771294238958,-151.0,0.0001349,2]
[405773833,1771294238973,-200.0,0.00013491,2]
[405773834,1771294238988,-521.581,0.00013498,2]
[405773835,1771294239002,-6121.659,0.00013498,2]
[405773836,1771294239016,-500.0,0.0001358,2]
[405773837,1771294239029,-365.0,0.0001358,2]
[405773838,1771294239043,-10000.0,0.00013598,2]
[405773839,1771294239059,-10709.18,0.00013687,2]
[405773840,1771294239072,-500.0,0.00013698,2]
[405773841,1771294239086,-500.0,0.00013698,2]
[405773842,1771294239098,-500.0,0.00013698,2]
[405773843,1771294239109,-500.0,0.00013698,2]
[405773844,1771294239121,-500.0,0.00013698,2]
[405773845,1771294239134,-500.0,0.00013698,2]
[405773846,1771294239149,-500.0,0.00013698,2]
[405773847,1771294239165,-500.0,0.00013698,2]
[405773848,1771294239177,-500.0,0.00013698,2]
[405773849,1771294239187,-500.0,0.00013698,2]
[405773850,1771294239200,-640.04214858,0.00013698,2]
[405773851,1771294239214,-500.0,0.00013698,2]
[405773852,1771294239230,-500.0,0.00013698,2]
[405773854,1771294239243,-500.0,0.00013698,2]
[405773855,1771294239255,-500.0,0.00013698,2]
[405773856,1771294239274,-500.0,0.00013698,2]
[405773857,1771294239287,-500.0,0.00013698,2]
[405773858,1771294239299,-500.0,0.00013698,2]
[405773859,1771294239320,-500.0,0.00013698,2]
[405773860,1771294239333,-500.0,0.00013698,2]
[405773861,1771294239347,-506.79858148,0.00013698,2]
[405773862,1771294239365,-500.0,0.00013698,2]
[405773863,1771294239380,-157.12,0.00013698,2]
[405773864,1771294239394,-500.0,0.00013698,2]
[405773865,1771294239409,-500.0,0.00013698,2]
[405773866,1771294239424,-712.99,0.00013699,2]
[405773867,1771294239439,-200.0,0.00013699,2]
[405773868,1771294239453,-2071.01,0.00014066,2]
[405773869,1771294239466,-1600.0,0.00014152,2]
[405773870,1771294239480,-108.13792054,0.0001444,2]
[405773871,1771294239494,-29999.99,0.00014504,2]
[405773872,1771294239508,-2823.55,0.00014504,2]
[405773873,1771294239521,-13456.44,0.00014567,2]
[405773874,1771294239535,-3240.0,0.00014595,2]
[405773875,1771294239548,-9150.74,0.00014607,2]
[405773876,1771294239562,-250.0,0.00015241,2]
[405773877,1771294239575,-254.47280429,0.0001561,2]
[405773878,1771294239589,-1600.0,0.00015724,2]
[405773879,1771294239603,-266.08054323,0.00015779,2]
[405773880,1771294239616,-204.96314575,0.00015905,2]
[405773881,1771294239630,-5016.72175524,0.0001596,2]
[405773882,1771294239643,-7910.59,0.00016116,2]
[405773883,1771294239656,-173.57638878,0.0001668,2]
[405773884,1771294239670,-160.0,0.0001668,2]
[405773885,1771294239683,-159.42,0.00016712,2]
[405773886,1771294239701,-63973.0,0.000169,2]
[405773887,1771294239717,-534.18504776,0.00016963,2]
[405773888,1771294239732,-151.61045429,0.000171,2]
[405773889,1771294239747,-1600.0,0.00017297,2]
[405773890,1771294239763,-502.0,0.000173,2]
[405773891,1771294239778,-500.0,0.00017327,2]
[405773892,1771294239793,-466.0,0.00017327,2]
[405773893,1771294239808,-150.0,0.00017327,2]
[405773894,1771294239822,-500.0,0.00017382,2]
[405773895,1771294239836,-466.0,0.00017382,2]
[405773896,1771294239850,-500.0,0.00017437,2]
[405773897,1771294239865,-466.0,0.00017437,2]
[405773898,1771294239879,-500.0,0.00017491,2]
[405773899,1771294239892,-466.0,0.00017491,2]
[405773900,1771294239906,-500.0,0.00017546,2]
[405773901,1771294239920,-466.0,0.00017546,2]
[405773902,1771294239933,-500.0,0.00017601,2]
[405773903,1771294239947,-466.0,0.00017601,2]
[405773904,1771294239960,-500.0,0.00017656,2]
[405773905,1771294239973,-466.0,0.00017656,2]
[405773906,1771294239987,-5530.0,0.000177,3]
[405773907,1771294240001,-500.0,0.00017711,2]
[405773908,1771294240014,-466.0,0.00017711,2]
[405773909,1771294240032,-160.57318335,0.00017736,2]
[405773910,1771294240045,-500.0,0.00017765,2]
[405773911,1771294240059,-466.0,0.00017765,2]
[405773912,1771294240073,-5590.75,0.00017786,2]
[405773913,1771294240086,-500.0,0.00017808,2]
[405773914,1771294240100,-500.0,0.00017808,2]
[405773915,1771294240114,-500.0,0.00017808,2]
[405773916,1771294240127,-500.0,0.00017808,2]
[405773917,1771294240141,-217.00056237,0.00017808,2]
[405773918,1771294240154,-500.0,0.00017808,2]
[405773919,1771294240167,-500.0,0.00017808,2]
[405773920,1771294240180,-803.57150331,0.00017808,2]
[405773921,1771294240194,-500.0,0.0001782,2]
[405773922,1771294240211,-466.0,0.0001782,2]
[405773923,1771294240224,-500.0,0.00017875,2]
[405773924,1771294240238,-466.0,0.00017875,2]
[405773925,1771294240251,-389.91437262,0.000179,3]
[405773926,1771294240266,-500.0,0.00017914,2]